bitfinex/quotes_ETHUSD_20260310
["timestamp","ask_amount","ask_price","bid_price","bid_amount"]
[1773185085726,0.002,2033.6,2033.4,0.4601141]
[1773185086719,0.49457552,2033.6,2033.5,4.9029957]
[1773185086924,0.49257552,2033.5,2033.3,4.7029957]
[1773185087215,0.49257552,2033.5,2033.2,4.7029957]
[1773185087722,1.72203132,2033.5,2033.2,4.7029957]
[1773185088108,1.72203132,2033.5,2033.2,5.18369096]
[1773185088311,0.49257552,2033.5,2033.3,4.7029957]
[1773185089704,0.49257552,2033.5,2033.2,1.71028332]
[1773185089922,0.49257552,2033.5,2033.3,4.7029957]
[1773185090521,0.49257552,2033.5,2033.3,5.93249782]
[1773185090705,0.002,2033.6,2033.3,6.41286674]
[1773185090908,0.46381067,2033.6,2033.4,4.7029957]
[1773185091795,1.69316746,2033.6,2033.4,4.7029957]
[1773185095552,1.23123794,2033.8,2033.6,0.48036892]
[1773185095787,1.69304861,2033.8,2033.4,0.48036892]
[1773185095990,0.46381067,2033.8,2033.4,0.48036892]
[1773185096176,0.46181067,2033.7,2033.0,0.001]
[1773185096346,0.46181067,2033.5,2033.0,0.001]
[1773185096549,0.46181067,2033.5,2032.8,0.001]
[1773185096849,0.46181067,2033.5,2032.8,1.39301682]
[1773185097049,0.46181067,2033.5,2032.9,0.16218693]
[1773185097249,0.46181067,2033.5,2032.8,1.39301682]
[1773185097451,0.46181067,2033.3,2032.9,0.16218693]
[1773185097979,0.002,2033.8,2033.2,0.96905565]
[1773185098199,0.46381067,2033.8,2033.3,0.16218693]
[1773185098480,0.46181067,2033.7,2033.1,1.65]
[1773185098645,0.46181067,2033.7,2033.2,0.16218693]
[1773185098850,0.002,2033.8,2033.5,0.001]
[1773185099278,0.002,2033.6,2033.5,0.001]
[1773185099449,0.002,2033.6,2033.5,1.23040742]
[1773185099650,0.002,2033.6,2033.5,0.001]
[1773185100855,0.002,2033.8,2033.5,1.13224258]
[1773185101057,0.002,2034.0,2033.8,0.16218693]
[1773185101259,0.3593431,2034.2,2034.0,0.16218693]
[1773185101450,0.46181067,2034.1,2033.8,1.2291931]
[1773185101780,0.46181067,2034.1,2033.5,0.001]
[1773185102077,0.46181067,2034.0,2033.6,1.3915339]
[1773185102280,2.05014006,2034.2,2033.6,1.3915339]
[1773185102484,1.58832939,2034.2,2033.6,1.3915339]
[1773185102687,0.46181067,2034.1,2033.6,1.3915339]
[1773185103185,0.46181067,2034.1,2033.6,0.16218693]
[1773185103354,0.46181067,2033.9,2033.5,0.001]
[1773185104584,0.46181067,2033.9,2033.3,0.001]
[1773185105353,1.22922607,2033.8,2033.3,0.001]
[1773185105681,0.46181067,2033.7,2033.3,0.001]
[1773185109352,0.46181067,2033.5,2033.0,0.001]
[1773185111298,0.46181067,2033.7,2033.0,0.16518693]
[1773185111489,0.46181067,2033.6,2033.0,0.16518693]
[1773185113497,0.46181067,2033.6,2033.2,0.001]
[1773185113965,0.46181067,2033.6,2033.2,0.16518693]
[1773185116698,0.46181067,2033.6,2033.2,1.39472923]
[1773185116897,0.46181067,2033.5,2033.2,0.001]
[1773185117069,0.46181067,2033.5,2033.0,0.001]
[1773185117685,0.46181067,2033.4,2032.8,0.001]
[1773185118706,0.46181067,2033.2,2032.8,0.001]
[1773185121689,0.49798164,2033.7,2032.8,0.16618693]
[1773185123625,4.9169554,2033.8,2033.3,0.45734524]
[1773185123626,0.49798164,2033.8,2033.3,0.45734524]
[1773185124118,1.72723379,2033.8,2033.3,0.45734524]
[1773185124822,0.49798164,2033.8,2033.3,0.45734524]
[1773185125138,0.002,2033.9,2033.3,0.45734524]
[1773185125615,0.002,2033.9,2033.5,0.45734524]
[1773185127188,0.002,2033.7,2033.5,0.45734524]
[1773185127409,0.002,2033.9,2033.6,0.45734524]
[1773185127621,0.002,2033.9,2033.8,0.45734524]
[1773185127930,0.002,2034.0,2033.8,0.45734524]
[1773185130514,0.002,2034.0,2033.9,1.68651088]
[1773185133226,0.002,2034.0,2033.9,1.22916564]
[1773185134922,0.002,2034.0,2033.8,1.22919295]
[1773185136118,0.002,2034.0,2033.7,1.6865895]
[1773185137194,0.49998164,2034.0,2033.7,1.6865895]
[1773185139039,0.49998164,2034.0,2033.7,0.45734524]
[1773185139205,0.49798164,2033.9,2033.5,1.653]
[1773185139412,0.49798164,2033.9,2033.5,2.11034524]
[1773185139730,0.002,2033.8,2033.5,2.11034524]
[1773185139925,0.002,2033.8,2033.7,0.001]
[1773185140128,0.002,2034.0,2033.8,0.45734524]
[1773185142143,0.002,2034.0,2033.9,1.22916564]
[1773185145032,0.002,2034.0,2033.8,1.68653]
[1773185145339,0.49998164,2034.0,2033.8,1.22922175]
[1773185148040,0.002,2034.0,2033.8,1.22922175]
[1773185152109,0.49898395,2034.0,2033.7,1.68762463]
[1773185152313,0.49898395,2034.0,2033.5,1.22938018]
[1773185153227,0.49698395,2033.7,2033.4,0.001]
[1773185153633,0.49698395,2033.7,2033.5,0.001]
[1773185154128,1.72633092,2033.6,2033.5,0.001]
[1773185154642,0.49698395,2033.6,2033.5,0.001]
[1773185158248,1.72823372,2033.8,2033.5,0.001]
[1773185158549,0.49698395,2033.7,2033.5,0.001]
[1773185159241,0.002,2033.8,2033.5,0.001]
[1773185159420,0.49898395,2033.8,2033.5,0.001]
[1773185161755,0.49898395,2033.8,2033.5,1.23040742]
[1773185161932,0.49698395,2033.7,2033.5,0.001]
[1773185162254,0.49698395,2033.7,2033.4,0.001]
[1773185162752,0.49698395,2033.7,2033.0,1.23068121]
[1773185163940,0.49698395,2033.5,2033.0,1.23068121]
[1773185164556,0.49698395,2033.5,2033.0,1.72398764]
[1773185165541,0.49698395,2033.5,2033.1,0.49330643]
[1773185166169,0.49698395,2033.5,2033.2,1.23058882]
[1773185167146,0.49698395,2033.5,2033.2,0.001]
[1773185167970,0.49698395,2033.4,2033.2,0.001]
[1773185170236,0.49698395,2033.7,2033.2,0.001]
[1773185170432,0.49698395,2033.7,2033.2,0.49430643]
[1773185172357,0.49698395,2033.6,2033.3,1.22952835]
[1773185174932,0.49698395,2033.6,2033.3,1.72283478]
[1773185175260,0.49698395,2033.6,2033.3,0.49330643]
[1773185176338,0.49698395,2033.6,2033.2,1.72384585]
[1773185176667,0.49698395,2033.5,2033.2,1.72384585]
[1773185176961,0.49698395,2033.4,2033.2,0.001]
[1773185177164,0.49698395,2033.4,2033.0,0.001]
[1773185177864,0.49698395,2033.4,2033.0,1.23070972]
[1773185178063,0.49698395,2033.4,2033.2,0.001]
[1773185179462,1.7264559,2033.4,2033.2,0.001]
[1773185180436,1.72645355,2033.4,2033.2,0.001]
[1773185181177,0.45026183,2033.3,2033.2,0.001]
[1773185189184,0.45026183,2033.3,2033.2,1.708e-05]
[1773185189382,1.67979018,2033.3,2033.2,1.708e-05]
[1773185190183,0.45026183,2033.3,2033.2,1.708e-05]
[1773185193382,1.67979018,2033.3,2033.2,1.708e-05]
[1773185199190,1.67979018,2033.3,2033.0,0.4799779]
[1773185202615,0.45026183,2033.2,2033.0,0.001]
[1773185205914,0.002,2033.1,2033.0,0.001]
[1773185208022,0.48528313,2033.1,2032.8,0.001]
[1773185208316,0.48328313,2032.9,2032.5,1.23100061]
[1773185208521,0.48328313,2032.9,2032.5,1.69167165]
[1773185211019,1.71305612,2032.9,2032.5,1.23100061]
[1773185211221,1.2316981,2033.1,2032.6,0.46291577]
[1773185211423,0.002,2033.1,2032.7,0.46291577]
[1773185211625,0.47496293,2033.1,2032.7,1.43093669]
[1773185211918,0.47496293,2033.1,2032.8,0.46291577]
[1773185212522,1.70456329,2033.2,2032.8,0.46291577]
[1773185213828,1.70456329,2033.2,2032.8,1.69273823]
[1773185214000,0.47496293,2033.1,2032.8,0.46291577]
[1773185214716,0.47496293,2033.1,2032.8,1.69274621]
[1773185215112,0.47496293,2033.1,2032.8,0.46291577]
[1773185216134,1.70462496,2033.1,2032.8,0.46291577]
[1773185216331,1.70462496,2033.1,2032.6,1.69283692]
[1773185216332,0.47496293,2033.0,2032.6,1.69283692]
[1773185217227,1.7046081,2033.2,2032.7,0.46291577]
[1773185217434,0.47496293,2033.1,2032.7,0.46291577]
[1773185217925,1.7046081,2033.2,2032.7,0.46291577]
[1773185218130,1.22964517,2033.2,2032.7,0.46291577]
[1773185218330,1.22964517,2033.2,2032.6,1.22992115]
[1773185218331,0.47696293,2033.3,2032.9,0.46291577]
[1773185219339,0.47696293,2033.3,2032.8,1.69274654]
[1773185219717,0.47696293,2033.3,2032.8,0.46291577]
[1773185219930,0.002,2032.9,2032.8,0.46291577]
[1773185222235,0.47696293,2032.9,2032.5,0.001]
[1773185222438,0.47696293,2032.9,2032.5,1.39809333]
[1773185222635,1.70674337,2032.9,2032.5,1.39809333]
[1773185222939,0.002,2032.9,2032.6,0.16708183]
[1773185223136,0.002,2033.1,2032.8,0.16508183]
[1773185223438,1.23156984,2033.3,2033.0,0.16508183]
[1773185223439,0.002,2033.3,2033.0,0.16508183]
[1773185224242,0.47696293,2033.3,2032.8,0.16508183]
[1773185224447,0.47696293,2033.3,2032.5,1.2310115]
[1773185224448,0.47496293,2033.2,2032.5,3.05409333]
[1773185224745,1.70458209,2033.2,2032.8,0.16508183]
[1773185224909,0.47496293,2033.2,2032.8,0.16508183]
[1773185225111,1.70649582,2033.3,2032.8,0.16508183]
[1773185225312,0.47496293,2033.2,2032.8,0.16508183]
[1773185227167,0.47496293,2033.2,2032.9,1.22977027]
[1773185229840,0.47496293,2033.1,2032.8,1.39486195]
[1773185230214,0.47496293,2033.1,2032.7,1.3949731]
[1773185232243,0.47496293,2033.1,2032.9,0.001]
[1773185232645,0.47696293,2033.1,2032.9,0.001]
[1773185233142,0.47496293,2033.0,2032.9,0.001]
[1773185238522,0.002,2033.1,2032.9,0.001]
[1773185238523,0.47696293,2033.1,2032.9,0.001]
[1773185238743,0.002,2033.1,2032.9,0.16608183]
[1773185240234,0.48087089,2033.1,2032.9,0.001]
[1773185242529,0.002,2033.1,2033.0,1.22970978]
[1773185242850,0.002,2033.4,2033.1,0.16508183]
[1773185243025,0.002,2033.5,2033.2,0.16508183]
[1773185244353,0.002,2033.5,2033.3,0.16508183]
[1773185244558,0.002,2033.6,2033.5,1.39448925]
[1773185244727,0.002,2033.7,2033.6,0.16308183]
[1773185245751,0.48087089,2033.7,2033.2,0.16308183]
[1773185245957,0.002,2033.7,2033.4,0.16308183]
[1773185246255,0.002,2033.8,2033.6,0.16308183]
[1773185246454,0.002,2034.1,2033.8,0.16308183]
[1773185246757,0.002,2034.1,2033.9,1.39224747]
[1773185250438,0.002,2034.1,2034.0,0.16308183]
[1773185251657,0.002,2034.1,2033.9,1.22913192]
[1773185252231,0.002,2034.1,2033.8,1.39227747]
[1773185252830,0.48087089,2034.1,2033.8,1.39227747]
[1773185254682,0.48087089,2034.1,2033.8,0.16308183]
[1773185254836,0.48087089,2034.1,2033.8,1.22920862]
[1773185257219,0.48087089,2034.1,2033.7,1.39232419]
[1773185257888,0.48087089,2034.1,2033.5,1.39247554]
[1773185257889,0.47887089,2034.0,2033.5,1.39247554]
[1773185258174,0.47887089,2034.0,2033.3,0.16308183]
[1773185258664,0.47887089,2033.8,2033.7,0.001]
[1773185260868,1.70809696,2033.8,2033.7,0.001]
[1773185261039,0.5,2033.5,2033.1,0.001]
[1773185261366,0.5,2033.0,2032.7,0.001]
[1773185263346,1.22977027,2032.9,2032.7,0.001]
[1773185263556,1.72973397,2033.0,2032.7,0.001]
[1773185263760,1.22969652,2033.1,2032.7,0.001]
[1773185265675,1.72969652,2033.1,2032.7,0.001]
[1773185268491,0.5,2033.5,2032.7,0.001]
[1773185268669,0.5,2033.2,2032.7,0.001]
[1773185271485,1.7296493,2033.1,2033.0,0.001]
[1773185272305,0.4995,2033.0,2032.8,0.001]
[1773185273793,1.22977027,2032.9,2032.8,0.001]
[1773185274189,1.72927027,2032.9,2032.8,0.001]
[1773185275405,0.4995,2032.9,2032.8,0.001]
[1773185278005,1.72927027,2032.9,2032.8,0.001]
[1773185281211,0.499,2032.8,2032.2,0.001]
[1773185281509,0.499,2032.8,2032.2,0.003]
[1773185282999,0.5,2032.6,2032.2,0.003]
[1773185284913,0.5,2032.6,2032.5,0.001]
[1773185285119,1.7300123,2032.5,2032.2,0.003]
[1773185285417,0.5,2032.4,2032.2,0.003]
[1773185287339,1.73010935,2032.4,2032.2,0.003]
[1773185287541,0.5,2032.3,2032.2,0.003]
[1773185288044,0.5,2032.3,2031.9,0.001]
[1773185288238,0.5,2032.3,2032.0,0.003]
[1773185288433,0.5,2032.3,2031.9,0.001]
[1773185289015,0.5,2032.3,2032.0,0.003]
[1773185290039,1.73016569,2032.3,2032.0,0.003]
[1773185290546,1.73014114,2032.3,2032.0,0.003]
[1773185290844,0.5,2032.3,2032.0,0.003]
[1773185291541,0.5,2032.3,2032.0,0.49197862]
[1773185292549,1.73014097,2032.3,2032.0,0.49197862]
[1773185292849,0.5,2032.3,2032.0,0.49197862]
[1773185293050,0.5,2032.3,2031.9,1.23134372]
[1773185293051,0.47710905,2032.2,2031.9,0.001]
[1773185293252,0.47710905,2032.2,2031.9,0.004]
[1773185294754,1.70733346,2032.2,2031.9,0.004]
[1773185295260,0.47710905,2032.2,2031.9,0.49297862]
[1773185295558,0.47710905,2032.4,2032.0,0.49197862]
[1773185295718,1.70718803,2032.4,2032.0,0.49197862]
[1773185295916,0.47710905,2032.5,2032.0,0.49197862]
[1773185296135,0.47710905,2032.5,2032.1,0.49197862]
[1773185296336,0.47710905,2032.5,2032.0,0.003]
[1773185296534,0.47710905,2032.5,2032.0,0.49197862]
[1773185297254,1.23007282,2032.4,2032.1,0.0011]
[1773185297445,1.70718187,2032.4,2032.1,0.0011]
[1773185297646,1.70818187,2032.4,2032.1,0.0011]
[1773185300032,0.47810905,2032.4,2032.1,0.45230929]
[1773185300233,0.001,2032.4,2032.2,0.45420929]
[1773185301453,0.45501925,2032.4,2032.2,0.003]
[1773185305760,0.001,2032.4,2032.2,0.45420929]
[1773185306081,6.61875694,2032.7,2032.3,0.45420929]
[1773185306082,2.15301925,2032.7,2032.3,0.45420929]
[1773185306235,1.22983256,2032.8,2032.3,0.45120929]
[1773185306429,1.68385181,2032.8,2032.4,0.45420929]
[1773185306629,1.68385181,2032.8,2032.4,0.45120929]
[1773185307762,1.68385615,2032.8,2032.5,0.45420929]
[1773185307946,1.2298369,2032.8,2032.5,0.45420929]
[1773185308463,1.68385615,2032.8,2032.5,0.45420929]
[1773185309771,0.45401925,2032.8,2032.5,1.6842141]
[1773185310197,1.68385173,2032.8,2032.5,0.45420929]
[1773185310870,1.68385192,2032.8,2032.5,0.45420929]
[1773185311290,0.45401925,2032.8,2032.5,0.45420929]
[1773185311613,1.683854,2032.8,2032.5,0.45420929]
[1773185312783,1.683854,2032.8,2032.6,0.003]
[1773185316088,0.45401925,2032.8,2032.6,0.003]
[1773185316384,1.68372563,2033.1,2032.7,0.45120929]
[1773185319124,1.23154248,2033.3,2032.9,0.45120929]
[1773185319413,1.23154248,2033.3,2032.8,0.003]
[1773185319414,0.45401925,2033.0,2032.8,0.003]
[1773185319712,1.2296493,2033.1,2032.8,0.003]
[1773185319911,1.2296493,2033.1,2032.9,0.003]
[1773185320206,1.23157448,2033.3,2032.9,0.45420929]
[1773185320510,1.68559373,2033.3,2033.0,0.45420929]
[1773185320710,1.68559373,2033.3,2033.0,0.45120929]
[1773185320912,1.68556002,2033.3,2033.0,0.45120929]
[1773185321996,1.68556002,2033.3,2033.1,0.003]
[1773185325423,0.45601925,2033.3,2033.2,0.003]
[1773185325612,1.23153234,2033.3,2033.1,0.45420929]
[1773185325816,1.23153234,2033.3,2033.1,0.45120929]
[1773185327136,0.002,2033.3,2033.1,0.45120929]
[1773185327620,0.002,2033.3,2033.2,0.003]
[1773185327925,0.002,2033.3,2033.2,0.46195187]
[1773185328226,0.002,2033.3,2033.2,0.003]
[1773185329625,0.002,2033.3,2033.1,0.45895187]
[1773185329832,0.002,2033.3,2033.2,0.003]
[1773185331231,0.002,2033.3,2033.2,0.46743392]
[1773185335240,0.49564578,2033.3,2033.2,0.003]
[1773185335411,0.49564578,2033.3,2032.9,0.46443392]
[1773185335611,0.002,2033.3,2033.0,0.46443392]
[1773185335816,0.002,2033.1,2033.0,0.46443392]
[1773185336038,0.002,2033.1,2033.0,0.46543392]
[1773185341658,0.002,2033.1,2033.0,0.001]
[1773185341860,0.49564578,2033.1,2033.0,0.001]
[1773185342241,0.002,2033.1,2033.0,0.001]
[1773185344239,0.002,2033.1,2033.0,0.46543392]
[1773185344569,1.23153235,2033.3,2033.0,0.46543392]
[1773185345242,0.002,2033.3,2033.0,0.46543392]
[1773185345858,0.49564578,2033.3,2033.0,0.46543392]
[1773185346367,0.002,2033.3,2033.0,1.69509932]
[1773185347075,0.49564578,2033.3,2033.0,1.69509932]
[1773185347677,0.49564578,2033.3,2033.2,0.001]
[1773185355703,0.002,2033.3,2033.2,0.001]
[1773185356497,0.002,2033.3,2033.2,0.46543392]
[1773185356681,0.002,2033.4,2033.2,0.46543392]
[1773185362404,0.002,2033.4,2033.3,0.48923275]
[1773185362573,0.002,2033.6,2033.3,0.48923275]
[1773185363183,1.23134789,2033.6,2033.3,0.48923275]
[1773185363774,0.002,2033.6,2033.3,0.48923275]
[1773185364398,0.46174004,2033.5,2033.2,0.001]
[1773185366475,1.69120792,2033.4,2033.2,0.001]
[1773185368105,1.69312507,2033.6,2033.2,0.49023275]
[1773185368302,1.23134786,2033.6,2033.2,0.49023275]
[1773185368507,1.23134786,2033.6,2033.3,0.48923275]
[1773185369203,0.002,2033.6,2033.3,0.48923275]
[1773185370775,0.002,2033.6,2033.4,1.22946788]
[1773185370981,0.002,2033.6,2033.5,0.48923275]
[1773185373238,0.002,2033.6,2033.5,1.71864017]
[1773185374815,0.002,2033.8,2033.6,0.48923275]
[1773185375503,0.002,2033.8,2033.5,1.71864017]
[1773185375708,0.46374004,2033.8,2033.5,1.71864017]
[1773185377220,0.46374004,2034.1,2033.7,0.48923275]
[1773185377388,1.69278586,2034.1,2033.7,0.48923275]
[1773185378123,0.46374004,2034.1,2033.7,0.48923275]
[1773185378423,1.69278881,2034.1,2033.7,0.48923275]
[1773185379535,1.69279432,2034.1,2033.8,0.48923275]
[1773185382931,0.46374004,2034.1,2033.8,1.71841308]
[1773185383131,1.69279248,2034.1,2033.8,0.48923275]
[1773185383434,1.69279248,2034.1,2033.7,1.71847405]
[1773185383636,0.46174004,2034.0,2033.7,1.71847405]
[1773185384129,0.46174004,2034.0,2033.6,1.22933482]
[1773185384512,0.46174004,2034.0,2033.6,1.71856757]
[1773185385505,1.69084731,2034.0,2033.6,1.71856757]
[1773185386000,1.69084712,2034.0,2033.6,1.71856757]
[1773185387037,1.69084712,2034.0,2033.7,0.001]
[1773185387335,0.002,2033.8,2033.7,0.001]
[1773185390030,0.002,2033.8,2033.7,0.45713097]
[1773185390332,0.002,2034.0,2033.8,0.45613097]
[1773185394767,0.002,2034.0,2033.7,0.45713097]
[1773185395062,0.45566839,2034.0,2033.7,0.001]
[1773185395451,0.45566839,2034.0,2033.7,1.23028193]
[1773185396663,0.45366839,2034.3,2033.7,1.6864129]
[1773185399765,0.45366839,2034.1,2033.7,0.45713097]
[1773185400063,0.45366839,2034.1,2033.7,1.23028625]
[1773185400263,0.45366839,2034.1,2033.9,0.001]
[1773185400759,0.002,2034.0,2033.9,0.001]
[1773185400966,0.45566839,2034.0,2033.9,0.001]
[1773185401366,0.45566839,2034.0,2033.5,0.001]
[1773185401964,0.45366839,2033.8,2033.5,0.001]
[1773185404466,1.68295491,2033.7,2033.5,0.001]
[1773185404769,0.002,2034.0,2033.6,0.45613097]
[1773185404968,1.68477796,2034.0,2033.6,0.45613097]
[1773185405270,0.45566839,2034.0,2033.6,0.45613097]
[1773185406376,0.45566839,2034.0,2033.7,0.45613097]
[1773185406540,1.68479251,2034.0,2033.7,0.45613097]
[1773185407176,0.45366839,2033.9,2033.5,0.001]
[1773185407346,0.45366839,2033.9,2033.5,1.68652453]
[1773185407552,0.45366839,2033.9,2033.6,0.45613097]
[1773185408653,1.68287247,2033.9,2033.6,0.45613097]
[1773185409364,0.45366839,2033.8,2033.5,0.001]
[1773185410765,0.45366839,2033.6,2033.5,0.001]
[1773185411471,0.45366839,2033.7,2033.5,0.001]
[1773185412486,1.68285839,2033.9,2033.5,0.45713097]
[1773185412638,0.002,2034.0,2033.6,0.45613097]
[1773185412838,0.002,2034.0,2033.8,0.45613097]
[1773185413069,1.68463047,2034.3,2033.8,0.45613097]
[1773185413446,0.45366839,2034.2,2033.8,0.45613097]
[1773185413852,0.002,2034.1,2033.8,0.45613097]
[1773185414978,0.002,2034.1,2033.8,1.68534855]
[1773185415990,0.002,2034.1,2033.9,0.45613097]
[1773185417692,0.002,2034.1,2033.8,1.22921758]
[1773185417892,0.002,2034.1,2033.8,1.68534855]
[1773185420094,0.49087275,2034.1,2033.7,0.001]
[1773185420478,0.49087275,2034.1,2033.7,0.48415529]
[1773185421284,0.49087275,2034.1,2033.5,0.001]
[1773185422493,0.48887275,2033.9,2033.5,0.001]
[1773185423004,0.48887275,2033.9,2033.5,0.48415529]
[1773185425000,0.48887275,2033.8,2033.5,0.48415529]
[1773185426186,0.48887275,2033.8,2033.7,0.001]
[1773185427205,1.71809882,2033.8,2033.7,0.001]
[1773185428601,0.48887275,2033.9,2033.7,0.001]
[1773185428805,6.63679327,2033.8,2033.7,0.001]
[1773185432521,7.86601934,2033.8,2033.7,0.001]
[1773185432723,1.71821972,2033.6,2033.5,0.001]
[1773185432901,0.48887275,2033.6,2033.5,0.001]
[1773185433096,6.63679327,2033.7,2033.5,0.001]
[1773185433322,1.22928101,2033.8,2033.5,0.48415529]
[1773185433494,6.14792052,2033.8,2033.5,0.48415529]
[1773185433695,0.48887275,2034.0,2033.5,0.48415529]
[1773185433900,6.14792052,2033.9,2033.5,0.48415529]
[1773185434396,0.002,2034.1,2033.9,0.48315529]
[1773185434631,0.002,2034.1,2033.8,1.22922607]
[1773185434807,0.002,2034.1,2033.9,0.48315529]
[1773185435948,0.49087275,2034.3,2034.0,0.48315529]
[1773185435949,0.002,2034.3,2034.0,0.48315529]
[1773185436936,0.002,2034.3,2034.1,0.48315529]
[1773185439054,0.002,2034.3,2034.1,1.71217195]
[1773185439244,0.002,2034.3,2034.2,0.48315529]
[1773185439921,6.14992052,2034.3,2033.9,1.71226093]
[1773185440136,6.63879327,2034.3,2033.9,0.48315529]
[1773185440321,6.63879327,2034.2,2033.9,0.48315529]
[1773185440525,6.63879327,2034.2,2033.9,1.71231093]
[1773185440729,6.14992052,2034.2,2034.0,0.48315529]
[1773185441130,5.94992052,2034.2,2034.1,0.48315529]
[1773185441427,6.43879327,2034.2,2033.8,1.22922607]
[1773185441626,7.66778227,2034.2,2033.8,1.71238136]
[1773185442125,6.43879327,2034.1,2033.8,0.48315529]
[1773185443546,5.94992052,2034.0,2033.8,1.71236197]
[1773185445347,5.94992052,2034.0,2033.7,4.91813474]
[1773185445348,0.48887275,2033.9,2033.7,0.001]
[1773185445567,0.48887275,2033.8,2033.7,0.001]
[1773185445862,6.43879327,2033.8,2033.7,0.001]
[1773185448657,5.94992052,2033.8,2033.7,0.001]
[1773185449026,0.4810439,2033.7,2033.5,0.001]
[1773185449346,6.43096442,2033.7,2033.5,0.001]
[1773185449748,7.6295357,2033.6,2033.5,0.001]
[1773185451027,0.45026821,2033.4,2033.2,0.001]
[1773185451450,5.94892052,2033.5,2033.2,0.001]
[1773185451656,6.39918873,2033.4,2033.2,0.001]
[1773185451858,0.45026821,2033.4,2033.2,0.001]
[1773185452737,7.17843647,2033.4,2033.2,0.001]
[1773185452942,0.45026821,2033.3,2033.2,0.001]
[1773185453466,1.67978416,2033.4,2033.2,0.001]
[1773185453663,5.94892052,2033.3,2033.2,0.001]
[1773185454460,5.94892052,2033.3,2033.2,0.48798858]
[1773185456041,0.45026821,2033.5,2033.2,0.48798858]
[1773185456242,1.68162626,2033.6,2033.2,0.48798858]
[1773185456638,0.45226821,2033.6,2033.3,0.48698858]
[1773185456941,1.68162015,2033.6,2033.3,0.48698858]
[1773185457158,0.45026821,2033.5,2033.2,1e-08]
[1773185457468,0.45026821,2033.5,2033.1,0.48698858]
[1773185460372,1.67969557,2033.5,2033.1,1.71662531]
[1773185461046,0.45026821,2033.4,2033.1,0.48698858]
[1773185461376,0.45026821,2033.4,2033.0,1.71769532]
[1773185462144,0.45026821,2033.4,2033.0,0.001]
[1773185462362,0.45026821,2033.2,2033.0,0.001]
[1773185463891,5.88674963,2033.6,2033.1,0.48698858]
[1773185463892,0.002,2033.6,2033.1,0.48698858]
[1773185464062,0.45026821,2033.5,2033.1,0.48698858]
[1773185464252,0.45026821,2033.5,2033.1,1.2296493]
[1773185464253,0.45026821,2033.4,2033.1,1.2296493]
[1773185465261,0.45026821,2033.4,2033.1,1.71663788]
[1773185465458,0.45026821,2033.4,2033.3,0.001]
[1773185466778,0.002,2033.6,2033.3,0.48798858]
[1773185468915,0.002,2033.6,2033.4,0.48698858]
[1773185471328,0.002,2034.3,2033.5,0.48698858]
[1773185471613,0.38855452,2034.9,2034.3,0.48698858]
[1773185471779,1.715,2034.8,2034.3,0.48698858]
[1773185471978,1.715,2034.8,2034.5,0.48698858]
[1773185472179,1.67855042,2035.4,2034.8,0.48698858]
[1773185472413,0.45026821,2035.4,2034.8,0.48698858]
[1773185472583,2.16526821,2035.4,2034.9,0.48698858]
[1773185472982,2.16526821,2035.4,2035.0,1.7154898]
[1773185473188,1.22812601,2035.7,2035.1,0.48698858]
[1773185473432,2.16526821,2035.7,2035.2,1.45434041]
[1773185473730,0.45026821,2035.7,2035.2,0.48698858]
[1773185475327,0.45026821,2035.5,2035.0,1.7154522]
[1773185475635,0.45026821,2035.5,2034.8,1.71560941]
[1773185475811,0.45026821,2035.3,2034.8,1.71560941]
[1773185477707,2.16526821,2035.2,2034.7,1.22863628]
[1773185477907,2.16526821,2035.2,2034.7,1.71562486]
[1773185478104,1.7,2036.0,2035.2,0.48698858]
[1773185478305,0.39056373,2036.4,2035.2,0.48698858]
[1773185478306,0.45026821,2035.9,2035.3,0.48698858]
[1773185478537,0.45026821,2036.1,2035.3,0.48698858]
[1773185479254,0.45326821,2036.3,2035.3,0.48698858]
[1773185479404,0.003,2036.3,2035.6,0.4668112]
[1773185479736,0.003,2036.3,2035.8,0.4668112]
[1773185481935,0.003,2036.3,2035.9,1.22795815]
[1773185482545,0.003,2036.3,2035.8,1.69478891]
[1773185484220,0.48600418,2036.3,2035.4,5.37964767]
[1773185484522,0.48600418,2036.3,2035.5,1.22819945]
[1773185484939,0.48600418,2036.3,2035.4,1.6950696]
[1773185485124,0.003,2036.3,2035.5,0.4668112]
[1773185485454,0.003,2036.3,2035.4,1.2282584]
[1773185485455,0.003,2036.6,2036.2,2.88105296]
[1773185485613,0.003,2036.6,2036.3,0.4668112]
[1773185486252,0.003,2036.6,2036.3,1.69451397]
[1773185486850,0.003,2036.6,2036.3,0.4668112]
[1773185487016,0.003,2036.6,2036.1,4.91119483]
[1773185487017,0.003,2036.6,2036.2,1.69458816]
[1773185487216,0.003,2036.6,2036.3,0.4668112]
[1773185488651,0.003,2036.6,2036.4,1.22765664]
[1773185489848,0.003,2036.6,2036.3,1.69452715]
[1773185490034,0.002,2036.4,2036.3,1.69452715]
[1773185490642,0.005,2036.6,2036.3,1.69452715]
[1773185491048,0.48800418,2036.6,2036.2,1.22772595]
[1773185491247,0.48800418,2036.6,2036.1,5.37806481]
[1773185491248,0.48800418,2036.6,2036.1,1.69462428]
[1773185491852,0.48800418,2036.6,2036.0,1.22785154]
[1773185492035,0.48800418,2036.6,2035.9,1.69472152]
[1773185492734,0.48300418,2036.4,2035.8,1.2280127]
[1773185493661,0.48300418,2036.4,2035.6,1.22812333]
[1773185494224,0.48300418,2036.4,2035.5,1.69599219]
[1773185494451,0.48300418,2036.4,2035.5,1.22918099]
[1773185495037,0.48300418,2036.2,2035.5,0.001]
[1773185495631,0.48300418,2036.2,2035.5,0.4678112]
[1773185497053,1.22783753,2036.1,2035.5,1.69595268]
[1773185497260,1.71084171,2036.1,2035.5,1.69595268]
[1773185498178,0.48300418,2036.0,2035.5,1.69595268]
[1773185499089,0.48300418,2036.0,2035.6,0.4668112]
[1773185499270,1.71079868,2036.2,2035.6,0.4668112]
[1773185500886,0.48300418,2036.1,2035.6,0.4668112]
[1773185501074,0.48300418,2035.9,2035.5,0.001]
[1773185502561,0.48300418,2035.9,2035.7,0.001]
[1773185502761,1.22981688,2036.2,2035.7,0.4678112]
[1773185503061,1.71282106,2036.2,2035.7,0.4678112]